[Event "Titled Tuesday Blitz June 6 Early 2023"]
[White "Antonova, Nadezhda"]
[Black "Shapiro, Viktor"]
[WhiteFideId "14700182"]
[BlackFideId "4175700"]
[WhiteElo "1795"]
[BlackElo "2212"]
[Result "0-1"]
[Round "11"]
[TimeControl "180+2"]
[Date "2023.06.06"]
[WhiteClock "0:00:01"]
[BlackClock "0:02:17"]
[Board "91"]

1. Nf3 {[%clk 0:00:03]}  Nf6 {[%clk 0:02:54]} 2. b3 {[%clk 0:00:04]}  d5 {[%clk 0:02:53]} 3. Bb2 {[%clk 0:00:05]}  Bf5 {[%clk 0:02:52]} 4. g3 {[%clk 0:00:06]}  e6 {[%clk 0:02:52]} 5. Bg2 {[%clk 0:00:07]}  Be7 {[%clk 0:02:52]} 6. O-O {[%clk 0:00:08]}  h6 {[%clk 0:02:51]} 7. d3 {[%clk 0:00:09]}  O-O {[%clk 0:02:51]} 8. Nbd2 {[%clk 0:00:10]}  Bh7 {[%clk 0:02:49]} 9. c4 {[%clk 0:00:10]}  c6 {[%clk 0:02:49]} 10. Qc2 {[%clk 0:00:10]}  a5 {[%clk 0:02:48]} 11. a3 {[%clk 0:00:10]}  Nbd7 {[%clk 0:02:48]} 12. Ne5 {[%clk 0:00:10]}  Rc8 {[%clk 0:02:45]} 13. Nxd7 {[%clk 0:00:10]}  Nxd7 {[%clk 0:02:45]} 14. Bc3 {[%clk 0:00:10]}  Bf6 {[%clk 0:02:44]} 15. b4 {[%clk 0:00:09]}  axb4 {[%clk 0:02:36]} 16. axb4 {[%clk 0:00:09]}  b5 {[%clk 0:02:33]} 17. Bxf6 {[%clk 0:00:08]}  Qxf6 {[%clk 0:02:33]} 18. Ra7 {[%clk 0:00:08]}  Ne5 {[%clk 0:02:31]} 19. Rfa1 {[%clk 0:00:07]}  bxc4 {[%clk 0:02:28]} 20. Qc3 {[%clk 0:00:04]}  Nf3+ {[%clk 0:02:27]} 21. Nxf3 {[%clk 0:00:01]}  Qxc3 {[%clk 0:02:28]} 22. dxc4 {[%clk 0:00:01]}  Qxa1+ {[%clk 0:02:26]} 23. Rxa1 {[%clk 0:00:01]}  Ra8 {[%clk 0:02:25]} 24. Rc1 {[%clk 0:00:01]}  Ra4 {[%clk 0:02:23]} 25. Ne5 {[%clk 0:00:02]}  Rxb4 {[%clk 0:02:22]} 26. Nxc6 {[%clk 0:00:02]}  Rb2 {[%clk 0:02:22]} 27. cxd5 {[%clk 0:00:02]}  exd5 {[%clk 0:02:22]} 28. Bxd5 {[%clk 0:00:02]}  Rxe2 {[%clk 0:02:22]} 29. Rf1 {[%clk 0:00:01]}  Be4 {[%clk 0:02:19]} 30. Bxe4 {[%clk 0:00:01]}  Rxe4 {[%clk 0:02:19]} 31. Rc1 {[%clk 0:00:01]}  g5 {[%clk 0:02:17]} 0-1


[Site "https://www.chess.com"]

[Event "Titled Tuesday Blitz June 6 Early 2023"]
[White "Camilla_Lee"]
[Black "Hoffmann, Asa"]
[BlackFideId "2001470"]
[WhiteElo "2488"]
[BlackElo "2117"]
[Result "1-0"]
[Round "11"]
[TimeControl "180+2"]
[Date "2023.06.06"]
[WhiteClock "0:00:04"]
[BlackClock "0:00:01"]
[Board "95"]

1. e4 {[%clk 0:03:00]}  d6 {[%clk 0:02:59]} 2. d4 {[%clk 0:03:00]}  Nf6 {[%clk 0:02:58]} 3. Nc3 {[%clk 0:03:00]}  c6 {[%clk 0:02:58]} 4. f4 {[%clk 0:03:00]}  Qa5 {[%clk 0:02:56]} 5. Bd3 {[%clk 0:03:00]}  e5 {[%clk 0:02:54]} 6. Nf3 {[%clk 0:02:54]}  exd4 {[%clk 0:02:49]} 7. Nxd4 {[%clk 0:02:54]}  Qb6 {[%clk 0:02:48]} 8. Be3 {[%clk 0:02:50]}  Ng4 {[%clk 0:02:46]} 9. Bg1 {[%clk 0:02:46]}  Qxb2 {[%clk 0:02:46]} 10. Nde2 {[%clk 0:02:45]}  Qa3 {[%clk 0:02:36]} 11. h3 {[%clk 0:02:44]}  Nf6 {[%clk 0:02:32]} 12. Bd4 {[%clk 0:02:28]}  Be7 {[%clk 0:02:27]} 13. e5 {[%clk 0:02:24]}  Nd5 {[%clk 0:02:20]} 14. Nxd5 {[%clk 0:02:15]}  cxd5 {[%clk 0:02:19]} 15. exd6 {[%clk 0:02:16]}  Qxd6 {[%clk 0:02:11]} 16. Bxg7 {[%clk 0:02:14]}  Rg8 {[%clk 0:02:08]} 17. Be5 {[%clk 0:02:14]}  Qb6 {[%clk 0:02:04]} 18. Rb1 {[%clk 0:01:50]}  Qe3 {[%clk 0:02:00]} 19. Bd4 {[%clk 0:01:47]}  Qe6 {[%clk 0:01:58]} 20. f5 {[%clk 0:01:24]}  Qh6 {[%clk 0:01:52]} 21. O-O {[%clk 0:01:19]}  Nc6 {[%clk 0:01:46]} 22. Bb5 {[%clk 0:01:04]}  Qxh3 {[%clk 0:01:33]} 23. Nf4 {[%clk 0:01:03]}  Qxf5 {[%clk 0:01:12]} 24. Qe2 {[%clk 0:00:34]}  Qe4 {[%clk 0:01:08]} 25. Qxe4 {[%clk 0:00:30]}  dxe4 {[%clk 0:01:07]} 26. Nd5 {[%clk 0:00:30]}  Bd8 {[%clk 0:00:59]} 27. Rbe1 {[%clk 0:00:21]}  f5 {[%clk 0:00:58]} 28. Bc3 {[%clk 0:00:16]}  Be6 {[%clk 0:00:57]} 29. Nf4 {[%clk 0:00:16]}  Bf7 {[%clk 0:00:57]} 30. Nh3 {[%clk 0:00:15]}  Be6 {[%clk 0:00:52]} 31. Nf4 {[%clk 0:00:15]}  Bd7 {[%clk 0:00:52]} 32. Bc4 {[%clk 0:00:13]}  Rf8 {[%clk 0:00:48]} 33. Nh5 {[%clk 0:00:12]}  Bb6+ {[%clk 0:00:46]} 34. Kh2 {[%clk 0:00:12]}  O-O-O {[%clk 0:00:46]} 35. Be5 {[%clk 0:00:07]}  Bc7 {[%clk 0:00:46]} 36. Bxc7 {[%clk 0:00:07]}  Kxc7 {[%clk 0:00:45]} 37. Nf4 {[%clk 0:00:08]}  Rf6 {[%clk 0:00:44]} 38. Nd5+ {[%clk 0:00:09]}  Kd6 {[%clk 0:00:40]} 39. Nxf6 {[%clk 0:00:10]}  Kc5 {[%clk 0:00:40]} 40. Bb3 {[%clk 0:00:10]}  Be8 {[%clk 0:00:36]} 41. Rxf5+ {[%clk 0:00:09]}  Kb4 {[%clk 0:00:35]} 42. Rxe4+ {[%clk 0:00:10]}  Ka3 {[%clk 0:00:34]} 43. Nd5 {[%clk 0:00:07]}  Bg6 {[%clk 0:00:33]} 44. Ra4+ {[%clk 0:00:07]}  Kb2 {[%clk 0:00:33]} 45. Rf2 {[%clk 0:00:07]}  Ne5 {[%clk 0:00:30]} 46. c4+ {[%clk 0:00:07]}  Ka1 {[%clk 0:00:27]} 47. c5 {[%clk 0:00:07]}  Ng4+ {[%clk 0:00:27]} 48. Kg3 {[%clk 0:00:07]}  Nxf2 {[%clk 0:00:27]} 49. Kxf2 {[%clk 0:00:08]}  Be4 {[%clk 0:00:25]} 50. Ne3 {[%clk 0:00:08]}  Bc6 {[%clk 0:00:24]} 51. Rc4 {[%clk 0:00:07]}  Kb2 {[%clk 0:00:24]} 52. Rc2+ {[%clk 0:00:08]}  Ka3 {[%clk 0:00:24]} 53. Nc4+ {[%clk 0:00:08]}  Kb4 {[%clk 0:00:24]} 54. Ne3 {[%clk 0:00:07]}  Rf8+ {[%clk 0:00:23]} 55. Ke2 {[%clk 0:00:07]}  Re8 {[%clk 0:00:23]} 56. Kd2 {[%clk 0:00:07]}  Rd8+ {[%clk 0:00:23]} 57. Ke2 {[%clk 0:00:06]}  Re8 {[%clk 0:00:23]} 58. Rc4+ {[%clk 0:00:06]}  Kb5 {[%clk 0:00:22]} 59. Rh4 {[%clk 0:00:06]}  Kxc5 {[%clk 0:00:21]} 60. Rxh7 {[%clk 0:00:06]}  Bxg2 {[%clk 0:00:20]} 61. Kd2 {[%clk 0:00:07]}  Bc6 {[%clk 0:00:19]} 62. Rh5+ {[%clk 0:00:06]}  Kb6 {[%clk 0:00:19]} 63. Nc4+ {[%clk 0:00:07]}  Kc7 {[%clk 0:00:19]} 64. Rh7+ {[%clk 0:00:07]}  Kb8 {[%clk 0:00:19]} 65. Kc3 {[%clk 0:00:07]}  a6 {[%clk 0:00:19]} 66. Na5 {[%clk 0:00:06]}  Be4 {[%clk 0:00:17]} 67. Rg7 {[%clk 0:00:05]}  Rc8+ {[%clk 0:00:14]} 68. Kd4 {[%clk 0:00:04]}  Re8 {[%clk 0:00:14]} 69. Nc4 {[%clk 0:00:03]}  Bc6 {[%clk 0:00:13]} 70. Nd6 {[%clk 0:00:03]}  Rd8 {[%clk 0:00:13]} 71. Kc5 {[%clk 0:00:04]}  Rf8 {[%clk 0:00:11]} 72. Bc4 {[%clk 0:00:03]}  Rh8 {[%clk 0:00:10]} 73. Re7 {[%clk 0:00:03]}  Ka7 {[%clk 0:00:09]} 74. Kb4 {[%clk 0:00:03]}  Rh6 {[%clk 0:00:09]} 75. Nf5 {[%clk 0:00:03]}  Rf6 {[%clk 0:00:08]} 76. Nd4 {[%clk 0:00:03]}  Rd6 {[%clk 0:00:07]} 77. Nxc6+ {[%clk 0:00:03]}  Rxc6 {[%clk 0:00:07]} 78. Bd5 {[%clk 0:00:04]}  Rb6+ {[%clk 0:00:07]} 79. Kc5 {[%clk 0:00:05]}  Rb5+ {[%clk 0:00:07]} 80. Kc4 {[%clk 0:00:05]}  Rb2 {[%clk 0:00:07]} 81. Kc5 {[%clk 0:00:05]}  Rc2+ {[%clk 0:00:06]} 82. Kd6 {[%clk 0:00:05]}  Rd2 {[%clk 0:00:06]} 83. Rh7 {[%clk 0:00:06]}  Rb2 {[%clk 0:00:04]} 84. a4 {[%clk 0:00:06]}  a5 {[%clk 0:00:04]} 85. Rh5 {[%clk 0:00:05]}  Ka6 {[%clk 0:00:04]} 86. Rh7 {[%clk 0:00:05]}  b5 {[%clk 0:00:03]} 87. axb5+ {[%clk 0:00:04]}  Rxb5 {[%clk 0:00:01]} 88. Bc4 {[%clk 0:00:04]} 1-0


[Site "https://www.chess.com"]

[Event "Titled Tuesday Blitz June 6 Early 2023"]
[White "Zenin, Dmitry"]
[Black "Srdanovic, Jovana"]
[WhiteFideId "4127897"]
[BlackFideId "954810"]
[WhiteElo "2215"]
[BlackElo "2155"]
[Result "1-0"]
[Round "11"]
[TimeControl "180+2"]
[Date "2023.06.06"]
[WhiteClock "0:01:15"]
[BlackClock "0:01:56"]
[Board "96"]

1. d4 {[%clk 0:03:00]}  d5 {[%clk 0:02:59]} 2. c4 {[%clk 0:03:00]}  c6 {[%clk 0:02:59]} 3. cxd5 {[%clk 0:03:00]}  cxd5 {[%clk 0:03:00]} 4. Bf4 {[%clk 0:03:00]}  Nf6 {[%clk 0:03:01]} 5. Nc3 {[%clk 0:03:00]}  Nc6 {[%clk 0:03:01]} 6. e3 {[%clk 0:03:00]}  a6 {[%clk 0:03:00]} 7. Rc1 {[%clk 0:02:59]}  Bf5 {[%clk 0:02:58]} 8. Nf3 {[%clk 0:02:56]}  e6 {[%clk 0:02:58]} 9. Qb3 {[%clk 0:02:56]}  Ra7 {[%clk 0:02:56]} 10. Be2 {[%clk 0:02:55]}  Be7 {[%clk 0:02:56]} 11. h3 {[%clk 0:02:52]}  h6 {[%clk 0:02:54]} 12. O-O {[%clk 0:02:51]}  O-O {[%clk 0:02:55]} 13. Ne5 {[%clk 0:02:46]}  Na5 {[%clk 0:02:52]} 14. Qd1 {[%clk 0:02:44]}  b5 {[%clk 0:02:52]} 15. b4 {[%clk 0:02:41]}  Bxb4 {[%clk 0:02:51]} 16. a4 {[%clk 0:02:39]}  Ba3 {[%clk 0:02:36]} 17. axb5 {[%clk 0:02:35]}  Bxc1 {[%clk 0:02:35]} 18. Qxc1 {[%clk 0:02:36]}  axb5 {[%clk 0:02:34]} 19. Nxb5 {[%clk 0:02:35]}  Rb7 {[%clk 0:02:32]} 20. Qa3 {[%clk 0:02:28]}  Nc4 {[%clk 0:02:29]} 21. Nxc4 {[%clk 0:02:26]}  dxc4 {[%clk 0:02:30]} 22. Bxc4 {[%clk 0:02:26]}  Nd5 {[%clk 0:02:29]} 23. Bd6 {[%clk 0:02:22]}  Re8 {[%clk 0:02:29]} 24. Bg3 {[%clk 0:02:22]}  Qa8 {[%clk 0:02:28]} 25. Qxa8 {[%clk 0:02:16]}  Rxa8 {[%clk 0:02:28]} 26. Nd6 {[%clk 0:02:17]}  Rb4 {[%clk 0:02:26]} 27. Bxd5 {[%clk 0:02:16]}  exd5 {[%clk 0:02:26]} 28. Nxf5 {[%clk 0:02:16]}  Ra7 {[%clk 0:02:23]} 29. Rc1 {[%clk 0:02:13]}  Kh7 {[%clk 0:02:20]} 30. Rc8 {[%clk 0:02:09]}  g6 {[%clk 0:02:18]} 31. Nd6 {[%clk 0:02:07]}  Kg7 {[%clk 0:02:14]} 32. Be5+ {[%clk 0:02:05]}  f6 {[%clk 0:02:14]} 33. Ne8+ {[%clk 0:02:05]}  Kf7 {[%clk 0:02:14]} 34. Nxf6 {[%clk 0:02:03]}  Ra6 {[%clk 0:02:13]} 35. Nxd5 {[%clk 0:02:02]}  Rb1+ {[%clk 0:02:13]} 36. Kh2 {[%clk 0:02:01]}  Ra2 {[%clk 0:02:14]} 37. Rc7+ {[%clk 0:01:59]}  Ke8 {[%clk 0:02:13]} 38. Bg3 {[%clk 0:01:28]}  Raa1 {[%clk 0:02:13]} 39. Bd6 {[%clk 0:01:28]}  Rb2 {[%clk 0:02:05]} 40. Nf6+ {[%clk 0:01:23]}  Kd8 {[%clk 0:02:05]} 41. Ne4 {[%clk 0:01:21]}  Ra6 {[%clk 0:02:01]} 42. Rg7 {[%clk 0:01:19]}  g5 {[%clk 0:01:56]} 43. Rh7 {[%clk 0:01:17]}  Rxf2 {[%clk 0:01:55]} 44. Nxf2 {[%clk 0:01:15]}  Rxd6 {[%clk 0:01:56]} 1-0


[Site "https://www.chess.com"]

[Event "Titled Tuesday Blitz June 6 Early 2023"]
[White "Zaksaite, Salomeja"]
[Black "Xu, Daniel"]
[WhiteFideId "12801496"]
[BlackFideId "2627345"]
[WhiteElo "2059"]
[BlackElo "1980"]
[Result "1-0"]
[Round "11"]
[TimeControl "180+2"]
[Date "2023.06.06"]
[WhiteClock "0:00:08"]
[BlackClock "0:00:02"]
[Board "100"]

1. e4 {[%clk 0:02:57]}  c5 {[%clk 0:02:59]} 2. Nf3 {[%clk 0:02:57]}  d6 {[%clk 0:02:59]} 3. d4 {[%clk 0:02:57]}  cxd4 {[%clk 0:03:00]} 4. Nxd4 {[%clk 0:02:57]}  Nf6 {[%clk 0:03:01]} 5. Nc3 {[%clk 0:02:58]}  a6 {[%clk 0:03:01]} 6. Bc4 {[%clk 0:02:58]}  e6 {[%clk 0:03:01]} 7. Bb3 {[%clk 0:02:57]}  Nc6 {[%clk 0:03:00]} 8. Be3 {[%clk 0:02:55]}  Be7 {[%clk 0:02:59]} 9. Qe2 {[%clk 0:02:54]}  O-O {[%clk 0:02:56]} 10. O-O-O {[%clk 0:02:54]}  Qc7 {[%clk 0:02:49]} 11. Rhg1 {[%clk 0:02:53]}  b5 {[%clk 0:02:40]} 12. g4 {[%clk 0:02:53]}  b4 {[%clk 0:02:37]} 13. g5 {[%clk 0:02:53]}  bxc3 {[%clk 0:02:34]} 14. gxf6 {[%clk 0:02:50]}  cxb2+ {[%clk 0:02:34]} 15. Kb1 {[%clk 0:02:50]}  Bxf6 {[%clk 0:02:35]} 16. Nxc6 {[%clk 0:02:49]}  Qxc6 {[%clk 0:02:35]} 17. e5 {[%clk 0:02:47]}  Bxe5 {[%clk 0:02:23]} 18. Bh6 {[%clk 0:02:46]}  g6 {[%clk 0:01:33]} 19. Bxf8 {[%clk 0:02:43]}  Kxf8 {[%clk 0:01:33]} 20. f4 {[%clk 0:02:17]}  Bf6 {[%clk 0:01:07]} 21. f5 {[%clk 0:02:17]}  gxf5 {[%clk 0:00:36]} 22. Qh5 {[%clk 0:02:15]}  a5 {[%clk 0:00:29]} 23. a4 {[%clk 0:02:00]}  Rb8 {[%clk 0:00:24]} 24. Qxh7 {[%clk 0:01:49]}  Rxb3 {[%clk 0:00:18]} 25. cxb3 {[%clk 0:01:47]}  Qe4+ {[%clk 0:00:18]} 26. Ka2 {[%clk 0:01:41]}  Qc2 {[%clk 0:00:16]} 27. Rb1 {[%clk 0:01:24]}  Bb7 {[%clk 0:00:16]} 28. Qg8+ {[%clk 0:00:25]}  Ke7 {[%clk 0:00:16]} 29. Qb8 {[%clk 0:00:15]}  Qc6 {[%clk 0:00:11]} 30. Rg8 {[%clk 0:00:13]}  e5 {[%clk 0:00:04]} 31. Qd8+ {[%clk 0:00:11]}  Ke6 {[%clk 0:00:04]} 32. Re8+ {[%clk 0:00:08]}  Kd5 {[%clk 0:00:02]} 33. Qxf6 {[%clk 0:00:08]} 1-0


[Site "https://www.chess.com"]

[Event "Titled Tuesday Blitz June 6 Early 2023"]
[White "Rosh Jain"]
[Black "Toktomushev, Teimur"]
[WhiteFideId "25789465"]
[BlackFideId "14176726"]
[WhiteElo "2233"]
[BlackElo "2116"]
[Result "0-1"]
[Round "11"]
[TimeControl "180+2"]
[Date "2023.06.06"]
[WhiteClock "0:00:01"]
[BlackClock "0:00:03"]
[Board "102"]

1. e4 {[%clk 0:02:56]}  c5 {[%clk 0:03:00]} 2. Nc3 {[%clk 0:02:55]}  e6 {[%clk 0:02:59]} 3. Nge2 {[%clk 0:02:54]}  a6 {[%clk 0:02:59]} 4. g3 {[%clk 0:02:51]}  b5 {[%clk 0:02:59]} 5. Bg2 {[%clk 0:02:50]}  Bb7 {[%clk 0:03:00]} 6. d3 {[%clk 0:02:50]}  Nc6 {[%clk 0:02:51]} 7. O-O {[%clk 0:02:50]}  Qc7 {[%clk 0:02:46]} 8. f4 {[%clk 0:02:48]}  d6 {[%clk 0:02:36]} 9. Be3 {[%clk 0:02:47]}  Nf6 {[%clk 0:02:25]} 10. d4 {[%clk 0:02:44]}  Ng4 {[%clk 0:02:03]} 11. Qd3 {[%clk 0:02:43]}  Nb4 {[%clk 0:01:41]} 12. Qd2 {[%clk 0:02:42]}  Nxe3 {[%clk 0:01:37]} 13. Qxe3 {[%clk 0:02:43]}  Nxc2 {[%clk 0:01:38]} 14. Qd2 {[%clk 0:02:43]}  Nxa1 {[%clk 0:01:38]} 15. Rxa1 {[%clk 0:02:43]}  g6 {[%clk 0:01:27]} 16. d5 {[%clk 0:02:38]}  Bg7 {[%clk 0:01:24]} 17. Rd1 {[%clk 0:02:35]}  Rd8 {[%clk 0:01:21]} 18. a3 {[%clk 0:02:28]}  O-O {[%clk 0:01:20]} 19. b3 {[%clk 0:02:20]}  b4 {[%clk 0:01:10]} 20. axb4 {[%clk 0:02:16]}  cxb4 {[%clk 0:01:11]} 21. Na4 {[%clk 0:02:15]}  exd5 {[%clk 0:01:10]} 22. exd5 {[%clk 0:02:14]}  Rfe8 {[%clk 0:01:04]} 23. Bf3 {[%clk 0:01:57]}  Ba8 {[%clk 0:00:41]} 24. Qxb4 {[%clk 0:01:50]}  Qa7+ {[%clk 0:00:31]} 25. Kg2 {[%clk 0:01:46]}  Re3 {[%clk 0:00:27]} 26. Qc4 {[%clk 0:01:30]}  Qb8 {[%clk 0:00:20]} 27. b4 {[%clk 0:01:01]}  Qb5 {[%clk 0:00:17]} 28. Qxb5 {[%clk 0:01:01]}  axb5 {[%clk 0:00:18]} 29. Nb6 {[%clk 0:01:01]}  Rb8 {[%clk 0:00:12]} 30. Nxa8 {[%clk 0:00:54]}  Rxa8 {[%clk 0:00:12]} 31. Rc1 {[%clk 0:00:54]}  h5 {[%clk 0:00:11]} 32. Rc6 {[%clk 0:00:53]}  Rd8 {[%clk 0:00:06]} 33. Rb6 {[%clk 0:00:52]}  h4 {[%clk 0:00:05]} 34. Rxb5 {[%clk 0:00:50]}  h3+ {[%clk 0:00:05]} 35. Kf2 {[%clk 0:00:50]}  Rb3 {[%clk 0:00:05]} 36. Bg4 {[%clk 0:00:45]}  f5 {[%clk 0:00:03]} 37. Bxh3 {[%clk 0:00:45]}  Rb2 {[%clk 0:00:03]} 38. Bf1 {[%clk 0:00:36]}  Re8 {[%clk 0:00:03]} 39. Rb7 {[%clk 0:00:34]}  Bd4+ {[%clk 0:00:02]} 40. Kg2 {[%clk 0:00:34]}  Rexe2+ {[%clk 0:00:02]} 41. Bxe2 {[%clk 0:00:34]}  Rxe2+ {[%clk 0:00:03]} 42. Kh1 {[%clk 0:00:33]}  Re1+ {[%clk 0:00:03]} 43. Kg2 {[%clk 0:00:33]}  Re2+ {[%clk 0:00:04]} 44. Kh1 {[%clk 0:00:33]}  Rb2 {[%clk 0:00:03]} 45. b5 {[%clk 0:00:29]}  Bc5 {[%clk 0:00:03]} 46. h4 {[%clk 0:00:25]}  Kh8 {[%clk 0:00:03]} 47. h5 {[%clk 0:00:18]}  gxh5 {[%clk 0:00:03]} 48. Rf7 {[%clk 0:00:19]}  h4 {[%clk 0:00:02]} 49. gxh4 {[%clk 0:00:18]}  Rxb5 {[%clk 0:00:01]} 50. Rxf5 {[%clk 0:00:17]}  Rb2 {[%clk 0:00:01]} 51. Rg5 {[%clk 0:00:17]}  Kh7 {[%clk 0:00:01]} 52. f5 {[%clk 0:00:17]}  Rf2 {[%clk 0:00:02]} 53. h5 {[%clk 0:00:16]}  Kh6 {[%clk 0:00:02]} 54. Rg6+ {[%clk 0:00:15]}  Kxh5 {[%clk 0:00:03]} 55. Rf6 {[%clk 0:00:15]}  Kg5 {[%clk 0:00:03]} 56. Rg6+ {[%clk 0:00:06]}  Kxf5 {[%clk 0:00:03]} 57. Re6 {[%clk 0:00:06]}  Rd2 {[%clk 0:00:03]} 58. Rf6+ {[%clk 0:00:06]}  Ke5 {[%clk 0:00:02]} 59. Rf5+ {[%clk 0:00:07]}  Kd4 {[%clk 0:00:02]} 60. Rg5 {[%clk 0:00:03]}  Kc4 {[%clk 0:00:02]} 61. Rg4+ {[%clk 0:00:02]}  Rd4 {[%clk 0:00:03]} 62. Rg5 {[%clk 0:00:02]}  Rxd5 {[%clk 0:00:03]} 63. Rg4+ {[%clk 0:00:02]}  Rd4 {[%clk 0:00:03]} 64. Rg5 {[%clk 0:00:02]}  d5 {[%clk 0:00:04]} 65. Kg2 {[%clk 0:00:02]}  Re4 {[%clk 0:00:04]} 66. Kf3 {[%clk 0:00:02]}  Re7 {[%clk 0:00:04]} 67. Rg4+ {[%clk 0:00:02]}  d4 {[%clk 0:00:05]} 68. Rg2 {[%clk 0:00:02]}  d3 {[%clk 0:00:05]} 69. Ra2 {[%clk 0:00:02]}  Kc3 {[%clk 0:00:05]} 70. Ra4 {[%clk 0:00:01]}  d2 {[%clk 0:00:05]} 71. Ra1 {[%clk 0:00:01]}  Kc2 {[%clk 0:00:05]} 72. Ra2+ {[%clk 0:00:01]}  Kc1 {[%clk 0:00:05]} 73. Ra1+ {[%clk 0:00:02]}  Kb2 {[%clk 0:00:05]} 74. Rh1 {[%clk 0:00:02]}  Re1 {[%clk 0:00:05]} 75. Rh2 {[%clk 0:00:02]}  Kc1 {[%clk 0:00:04]} 76. Kg3 {[%clk 0:00:01]}  d1=Q {[%clk 0:00:04]} 77. Kh3 {[%clk 0:00:01]}  Qf3+ {[%clk 0:00:03]} 0-1


[Site "https://www.chess.com"]

[Event "Titled Tuesday Blitz June 6 Early 2023"]
[White "Fernandez Garcia, Gumersindo"]
[Black "Rodriguez Santiago, Jaime"]
[WhiteFideId "24516740"]
[BlackFideId "3100898"]
[WhiteElo "2093"]
[BlackElo "2025"]
[Result "1-0"]
[Round "11"]
[TimeControl "180+2"]
[Date "2023.06.06"]
[WhiteClock "0:00:34"]
[BlackClock "0:00:15"]
[Board "103"]

1. e4 {[%clk 0:03:00]}  c6 {[%clk 0:02:59]} 2. c4 {[%clk 0:02:54]}  d5 {[%clk 0:02:58]} 3. cxd5 {[%clk 0:02:55]}  cxd5 {[%clk 0:02:58]} 4. exd5 {[%clk 0:02:56]}  Nf6 {[%clk 0:02:58]} 5. Nc3 {[%clk 0:02:55]}  a6 {[%clk 0:02:57]} 6. Nf3 {[%clk 0:02:54]}  Nbd7 {[%clk 0:02:57]} 7. d4 {[%clk 0:02:54]}  Nb6 {[%clk 0:02:56]} 8. d6 {[%clk 0:02:49]}  e6 {[%clk 0:02:50]} 9. Bg5 {[%clk 0:02:46]}  h6 {[%clk 0:02:34]} 10. Bh4 {[%clk 0:02:44]}  g5 {[%clk 0:02:33]} 11. Bg3 {[%clk 0:02:36]}  Bxd6 {[%clk 0:02:32]} 12. Bd3 {[%clk 0:02:35]}  Nbd5 {[%clk 0:02:26]} 13. Qe2 {[%clk 0:02:30]}  Nf4 {[%clk 0:02:02]} 14. Bxf4 {[%clk 0:02:26]}  Bxf4 {[%clk 0:02:03]} 15. O-O {[%clk 0:02:26]}  Nd5 {[%clk 0:01:56]} 16. Rad1 {[%clk 0:02:22]}  Nf6 {[%clk 0:01:40]} 17. d5 {[%clk 0:01:59]}  Qa5 {[%clk 0:01:36]} 18. dxe6 {[%clk 0:01:56]}  Bxe6 {[%clk 0:01:34]} 19. Bc4 {[%clk 0:01:53]}  Ke7 {[%clk 0:01:12]} 20. Rfe1 {[%clk 0:01:49]}  Qb6 {[%clk 0:00:54]} 21. Bxe6 {[%clk 0:01:37]}  fxe6 {[%clk 0:00:53]} 22. Nd4 {[%clk 0:01:25]}  Kf7 {[%clk 0:00:34]} 23. g3 {[%clk 0:01:11]}  Bc7 {[%clk 0:00:30]} 24. Qf3 {[%clk 0:01:02]}  Rhe8 {[%clk 0:00:25]} 25. Ne4 {[%clk 0:01:02]}  e5 {[%clk 0:00:26]} 26. Nf5 {[%clk 0:00:59]}  Kg6 {[%clk 0:00:23]} 27. Nfd6 {[%clk 0:00:38]}  Re6 {[%clk 0:00:19]} 28. Qf5+ {[%clk 0:00:37]}  Kg7 {[%clk 0:00:17]} 29. Qxe6 {[%clk 0:00:37]}  Rf8 {[%clk 0:00:16]} 30. Nxf6 {[%clk 0:00:33]}  Rxf6 {[%clk 0:00:17]} 31. Ne8+ {[%clk 0:00:33]}  Kf8 {[%clk 0:00:15]} 32. Qxf6+ {[%clk 0:00:34]} 1-0


[Site "https://www.chess.com"]

[Event "Titled Tuesday Blitz June 6 Early 2023"]
[White "Marchesich, Giovanni"]
[Black "Avazkhonov, Alikhon"]
[WhiteFideId "2824790"]
[BlackFideId "14208504"]
[WhiteElo "2213"]
[BlackElo "1739"]
[Result "0-1"]
[Round "11"]
[TimeControl "180+2"]
[Date "2023.06.06"]
[WhiteClock "0:00:20"]
[BlackClock "0:00:05"]
[Board "104"]

1. e4 {[%clk 0:03:00]}  c5 {[%clk 0:02:58]} 2. Nf3 {[%clk 0:02:59]}  d6 {[%clk 0:02:57]} 3. Nc3 {[%clk 0:02:58]}  Nf6 {[%clk 0:02:58]} 4. e5 {[%clk 0:02:58]}  dxe5 {[%clk 0:02:58]} 5. Nxe5 {[%clk 0:02:58]}  a6 {[%clk 0:02:59]} 6. g3 {[%clk 0:02:58]}  Qd6 {[%clk 0:02:55]} 7. f4 {[%clk 0:02:44]}  Nc6 {[%clk 0:02:41]} 8. Nxc6 {[%clk 0:02:32]}  Qxc6 {[%clk 0:02:42]} 9. Rg1 {[%clk 0:02:32]}  h5 {[%clk 0:02:33]} 10. Bg2 {[%clk 0:02:32]}  Qd6 {[%clk 0:02:30]} 11. h3 {[%clk 0:02:19]}  h4 {[%clk 0:02:27]} 12. d3 {[%clk 0:02:11]}  hxg3 {[%clk 0:02:27]} 13. Qf3 {[%clk 0:02:10]}  Bxh3 {[%clk 0:01:33]} 14. Qxb7 {[%clk 0:02:05]}  Bxg2 {[%clk 0:01:25]} 15. Qxg2 {[%clk 0:02:03]}  Qe6+ {[%clk 0:01:24]} 16. Kf1 {[%clk 0:01:55]}  Rd8 {[%clk 0:01:22]} 17. Bd2 {[%clk 0:01:49]}  Rh2 {[%clk 0:01:20]} 18. Qxg3 {[%clk 0:01:38]}  Rxd2 {[%clk 0:01:21]} 19. Re1 {[%clk 0:01:38]}  Qf5 {[%clk 0:01:12]} 20. Qf3 {[%clk 0:01:32]}  Qh5 {[%clk 0:01:06]} 21. Qc6+ {[%clk 0:01:32]}  Nd7 {[%clk 0:01:05]} 22. Re3 {[%clk 0:01:21]}  Qh2 {[%clk 0:01:04]} 23. Qf3 {[%clk 0:01:17]}  g6 {[%clk 0:00:56]} 24. Nd5 {[%clk 0:01:16]}  e6 {[%clk 0:00:48]} 25. Nc7+ {[%clk 0:00:59]}  Ke7 {[%clk 0:00:43]} 26. Nd5+ {[%clk 0:00:58]}  Kd6 {[%clk 0:00:43]} 27. Nc3 {[%clk 0:00:49]}  Nf6 {[%clk 0:00:43]} 28. Ne4+ {[%clk 0:00:35]}  Nxe4 {[%clk 0:00:17]} 29. Rxe4 {[%clk 0:00:36]}  Bg7 {[%clk 0:00:16]} 30. Ra4 {[%clk 0:00:33]}  Bd4 {[%clk 0:00:16]} 31. Rxa6+ {[%clk 0:00:32]}  Ke7 {[%clk 0:00:17]} 32. Ra7+ {[%clk 0:00:26]}  Kf6 {[%clk 0:00:18]} 33. Rh1 {[%clk 0:00:26]}  Rf2+ {[%clk 0:00:17]} 34. Ke1 {[%clk 0:00:25]}  Rxf3 {[%clk 0:00:10]} 35. Rxh2 {[%clk 0:00:25]}  Rxf4 {[%clk 0:00:11]} 36. Rh7 {[%clk 0:00:25]}  Rf8 {[%clk 0:00:09]} 37. c3 {[%clk 0:00:26]}  Be5 {[%clk 0:00:09]} 38. a4 {[%clk 0:00:26]}  Kg5 {[%clk 0:00:07]} 39. a5 {[%clk 0:00:25]}  f5 {[%clk 0:00:07]} 40. a6 {[%clk 0:00:25]}  Ra4 {[%clk 0:00:06]} 41. Rhe7 {[%clk 0:00:23]}  Bb8 {[%clk 0:00:05]} 42. Ra8 {[%clk 0:00:23]}  Kf6 {[%clk 0:00:04]} 43. Rb7 {[%clk 0:00:21]}  Bg3+ {[%clk 0:00:03]} 44. Ke2 {[%clk 0:00:20]}  Rxa8 {[%clk 0:00:04]} 45. Rb6 {[%clk 0:00:20]}  R8xa6 {[%clk 0:00:05]} 46. Rb7 {[%clk 0:00:20]}  Ra7 {[%clk 0:00:05]} 47. Rb8 {[%clk 0:00:20]}  Ra2 {[%clk 0:00:05]} 0-1


[Site "https://www.chess.com"]